fUSD/lending_fUSD_20250209
["ID","MTS","AMOUNT","RATE_DAILY","PERIOD"]
[352491907,1739137840406,-410.56087969,9.383e-05,2]
[352491908,1739137840416,-403.39247985,9.383e-05,2]
[352491911,1739137840428,-96.60752015,9.383e-05,2]
[352491913,1739137840437,-351.08058396,9.383e-05,2]
[352491915,1739137840450,-148.91941604,9.383e-05,2]
[352491917,1739137840460,-500.0,9.383e-05,2]
[352491919,1739137840471,-13.01664656,9.383e-05,2]
[352491921,1739137840483,-486.98335344,9.383e-05,2]
[352491923,1739137840492,-500.0,9.383e-05,2]
[352491925,1739137840502,-500.0,9.383e-05,2]
[352491927,1739137840517,-500.0,9.383e-05,2]
[352491929,1739137840527,-500.0,9.383e-05,2]
[352491931,1739137840538,-500.0,9.383e-05,2]
[352491934,1739137840548,-615.7,9.383e-05,2]
[352491935,1739137840559,-500.0,9.383e-05,2]
[352491937,1739137840569,-750.48,9.383e-05,2]
[352491938,1739137840579,-97.24891328,9.383e-05,2]
[352491941,1739137840612,-402.75108672,9.383e-05,2]
[352491943,1739137840623,-451.50403842,9.383e-05,2]
[352491945,1739137840636,-48.49596158,9.383e-05,2]
[352491947,1739137840646,-500.0,9.383e-05,2]
[352491949,1739137840656,-438.43382938,9.383e-05,2]
[352491952,1739137840669,-61.56617062,9.383e-05,2]
[352491954,1739137840678,-798.71341974,9.383e-05,2]
[352491956,1739137840689,-713.41658026,9.383e-05,2]
[352491958,1739137840700,-228.16210808,9.383e-05,2]
[352491960,1739137840714,-271.83789192,9.383e-05,2]
[352491961,1739137840724,-500.0,9.383e-05,2]
[352491962,1739137840733,-1213.15,9.383e-05,2]
[352491963,1739137840742,-500.0,9.383e-05,2]
[352491964,1739137840752,-643.54,9.383e-05,2]
[352491965,1739137840768,-500.0,9.383e-05,2]
[352491966,1739137840778,-587.24,9.383e-05,2]
[352491967,1739137840788,-500.0,9.383e-05,2]
[352491968,1739137840798,-500.0,9.383e-05,2]
[352491969,1739137840808,-500.0,9.383e-05,2]
[352491970,1739137840817,-500.0,9.383e-05,2]
[352491971,1739137840827,-500.0,9.383e-05,2]
[352491972,1739137840837,-500.0,9.383e-05,2]
[352491973,1739137840847,-500.0,9.383e-05,2]
[352491974,1739137840857,-500.0,9.383e-05,2]
[352491975,1739137840867,-174.65039747,9.383e-05,2]
[352491976,1739137840880,-325.34960253,9.383e-05,2]
[352491977,1739137840890,-500.0,9.383e-05,2]
[352491978,1739137840900,-500.0,9.383e-05,2]
[352491979,1739137840910,-500.0,9.383e-05,2]
[352491980,1739137840920,-500.0,9.383e-05,2]
[352491981,1739137840931,-839.43,9.383e-05,2]
[352491982,1739137840941,-2793.48,9.383e-05,2]
[352491983,1739137840950,-504.83,9.383e-05,2]
[352491984,1739137840959,-500.0,9.383e-05,2]
[352491985,1739137840970,-500.0,9.383e-05,2]
[352491986,1739137840979,-500.0,9.383e-05,2]
[352491987,1739137840989,-500.0,9.383e-05,2]
[352491988,1739137840999,-500.0,9.383e-05,2]
[352491989,1739137841014,-500.0,9.383e-05,2]
[352491990,1739137841024,-500.0,9.383e-05,2]
[352491991,1739137841034,-1500.0,9.483e-05,2]
[352491992,1739137841044,-500.0,9.52e-05,2]
[352491993,1739137841054,-841.43,9.52e-05,2]
[352491994,1739137841064,-500.0,9.52e-05,2]
[352491995,1739137841073,-500.0,9.52e-05,2]
[352491996,1739137841084,-634.54,9.52e-05,2]
[352491997,1739137841098,-500.0,9.52e-05,2]
[352491998,1739137841107,-500.0,9.52e-05,2]
[352491999,1739137841117,-178.96,9.52e-05,2]
[352492000,1739137841128,-500.0,9.52e-05,2]
[352492001,1739137841138,-500.0,9.52e-05,2]
[352492002,1739137841148,-500.0,9.52e-05,2]
[352492003,1739137841158,-500.0,9.52e-05,2]
[352492004,1739137841167,-500.0,9.52e-05,2]
[352492005,1739137841177,-317.37647202,9.52e-05,2]
[352492006,1739137841190,-182.62352798,9.52e-05,2]
[352492007,1739137841201,-500.0,9.52e-05,2]
[352492008,1739137841211,-500.0,9.52e-05,2]
[352492009,1739137841221,-750.48,9.52e-05,2]
[352492010,1739137841231,-500.0,9.52e-05,2]
[352492011,1739137841241,-500.0,9.52e-05,2]
[352492012,1739137841252,-500.0,9.52e-05,2]
[352492013,1739137841268,-500.0,9.52e-05,2]
[352492014,1739137841278,-1512.13,9.52e-05,2]
[352492015,1739137841288,-500.0,9.52e-05,2]
[352492016,1739137841299,-500.0,9.52e-05,2]
[352492017,1739137841309,-1213.15,9.52e-05,2]
[352492018,1739137841319,-500.0,9.52e-05,2]
[352492019,1739137841329,-643.54,9.52e-05,2]
[352492020,1739137841338,-500.0,9.52e-05,2]
[352492021,1739137841348,-587.24,9.52e-05,2]
[352492023,1739137841357,-500.0,9.52e-05,2]
[352492025,1739137841367,-500.0,9.52e-05,2]
[352492026,1739137841376,-500.0,9.52e-05,2]
[352492028,1739137841386,-585.92,9.52e-05,2]
[352492030,1739137841396,-500.0,9.52e-05,2]
[352492031,1739137841406,-500.0,9.52e-05,2]
[352492032,1739137841415,-500.0,9.52e-05,2]
[352492033,1739137841424,-500.0,9.52e-05,2]
[352492034,1739137841434,-500.0,9.52e-05,2]
[352492035,1739137841443,-500.0,9.52e-05,2]
[352492036,1739137841453,-500.0,9.52e-05,2]
[352492037,1739137841462,-500.0,9.52e-05,2]
[352492038,1739137841473,-500.0,9.52e-05,2]
[352492039,1739137841482,-839.43,9.52e-05,2]
[352492040,1739137841492,-2793.48,9.52e-05,2]
[352492041,1739137841501,-504.83,9.52e-05,2]
[352492042,1739137841515,-500.0,9.52e-05,2]
[352492043,1739137841525,-500.0,9.52e-05,2]
[352492044,1739137841535,-500.0,9.52e-05,2]
[352492045,1739137841544,-500.0,9.52e-05,2]
[352492048,1739137841554,-500.0,9.52e-05,2]
[352492049,1739137841564,-500.0,9.562e-05,2]
[352492050,1739137841574,-1113.35,9.611e-05,2]
[352492051,1739137841586,-1000.0,9.619e-05,2]
[352492052,1739137841597,-500.0,9.655e-05,2]
[352492053,1739137841607,-500.0,9.655e-05,2]
[352492054,1739137841617,-500.0,9.655e-05,2]
[352492055,1739137841627,-500.0,9.655e-05,2]
[352492056,1739137841637,-500.0,9.655e-05,2]
[352492057,1739137841647,-331.176048,9.656e-05,2]
[352492058,1739137841656,-500.0,9.656e-05,2]
[352492059,1739137841666,-500.0,9.656e-05,2]
[352492060,1739137841676,-500.0,9.656e-05,2]
[352492061,1739137841687,-500.0,9.656e-05,2]
[352492062,1739137841697,-500.0,9.656e-05,2]
[352492063,1739137841707,-340.066526,9.656e-05,2]
[352492064,1739137841718,-545.87,9.656e-05,2]
[352492065,1739137841729,-905.47,9.656e-05,2]
[352492066,1739137841739,-1391.73,9.656e-05,2]
[352492067,1739137841749,-500.0,9.656e-05,2]
[352492068,1739137841760,-836.78,9.656e-05,2]
[352492069,1739137841770,-652.41,9.656e-05,2]
[352492070,1739137841779,-500.0,9.656e-05,2]
[352492071,1739137841789,-500.0,9.656e-05,2]
[352492072,1739137841799,-500.0,9.656e-05,2]
[352492073,1739137841808,-782.74,9.656e-05,2]
[352492074,1739137841817,-500.0,9.656e-05,2]
[352492075,1739137841827,-935.17,9.656e-05,2]
[352492076,1739137841836,-500.0,9.656e-05,2]
[352492077,1739137841846,-826.42,9.656e-05,2]
[352492078,1739137841856,-500.0,9.656e-05,2]
[352492079,1739137841867,-500.0,9.656e-05,2]
[352492080,1739137841876,-608.4,9.656e-05,2]
[352492081,1739137841886,-500.0,9.656e-05,2]
[352492082,1739137841895,-500.0,9.656e-05,2]
[352492083,1739137841905,-665.86,9.656e-05,2]
[352492084,1739137841915,-500.0,9.656e-05,2]
[352492085,1739137841925,-161.48067168,9.656e-05,2]
[352492086,1739137841936,-500.0,9.656e-05,2]
[352492087,1739137841945,-500.0,9.656e-05,2]
[352492088,1739137841954,-157.54975285,9.656e-05,2]
[352492089,1739137841964,-500.0,9.657e-05,2]
[352492090,1739137841974,-841.43,9.657e-05,2]
[352492091,1739137841983,-41.27347349,9.657e-05,2]
[352492092,1739137841996,-180.33652651,9.657e-05,2]
[352492093,1739137842006,-500.0,9.657e-05,2]
[352492094,1739137842017,-634.54,9.657e-05,2]
[352492095,1739137842027,-500.0,9.657e-05,2]
[352492096,1739137842036,-500.0,9.657e-05,2]
[352492097,1739137842046,-500.0,9.657e-05,2]
[352492098,1739137842056,-500.0,9.657e-05,2]
[352492099,1739137842066,-500.0,9.657e-05,2]
[352492100,1739137842076,-500.0,9.657e-05,2]
[352492101,1739137842092,-500.0,9.657e-05,2]
[352492102,1739137842109,-500.0,9.657e-05,2]
[352492103,1739137842119,-500.0,9.657e-05,2]
[352492104,1739137842130,-500.0,9.657e-05,2]
[352492105,1739137842140,-750.48,9.657e-05,2]
[352492106,1739137842150,-500.0,9.657e-05,2]
[352492107,1739137842161,-500.0,9.657e-05,2]
[352492108,1739137842171,-500.0,9.657e-05,2]
[352492109,1739137842181,-500.0,9.657e-05,2]
[352492110,1739137842191,-1512.13,9.657e-05,2]
[352492111,1739137842200,-287.59,9.657e-05,2]
[352492112,1739137842210,-500.0,9.657e-05,2]
[352492113,1739137842219,-1213.15,9.657e-05,2]
[352492114,1739137842229,-500.0,9.657e-05,2]
[352492115,1739137842239,-643.54,9.657e-05,2]
[352492116,1739137842248,-500.0,9.657e-05,2]
[352492117,1739137842260,-587.24,9.657e-05,2]
[352492118,1739137842270,-500.0,9.657e-05,2]
[352492119,1739137842280,-500.0,9.657e-05,2]
[352492120,1739137842289,-500.0,9.657e-05,2]
[352492121,1739137842298,-500.0,9.657e-05,2]
[352492122,1739137842308,-500.0,9.657e-05,2]
[352492123,1739137842319,-500.0,9.657e-05,2]
[352492124,1739137842328,-500.0,9.657e-05,2]
[352492125,1739137842339,-500.0,9.657e-05,2]
[352492126,1739137842348,-500.0,9.657e-05,2]
[352492128,1739137842358,-500.0,9.657e-05,2]
[352492130,1739137842367,-500.0,9.657e-05,2]
[352492131,1739137842377,-839.43,9.657e-05,2]
[352492133,1739137842387,-2793.48,9.657e-05,2]
[352492135,1739137842397,-504.83,9.657e-05,2]
[352492137,1739137842407,-370.87,9.657e-05,2]
[352492139,1739137842416,-285.56089491,9.657e-05,2]
[352492141,1739137842426,-500.0,9.657e-05,2]
[352492143,1739137842436,-151.19,9.657e-05,2]
[352492145,1739137842445,-350.13,9.707e-05,2]
[352492147,1739137842455,-500.0,9.707e-05,2]
[352492149,1739137842465,-258.41,9.707e-05,2]
[352492151,1739137842474,-203.63,9.707e-05,2]
[352492153,1739137842484,-500.0,9.707e-05,2]
[352492155,1739137842494,-500.0,9.707e-05,2]
[352492157,1739137842504,-500.0,9.707e-05,2]
[352492159,1739137842517,-500.0,9.707e-05,2]
[352492162,1739137842528,-500.0,9.707e-05,2]
[352492167,1739137842538,-500.0,9.707e-05,2]
[352492171,1739137842547,-500.0,9.707e-05,2]
[352492175,1739137842557,-500.0,9.707e-05,2]
[352492178,1739137842567,-500.0,9.707e-05,2]
[352492181,1739137842577,-553.96,9.707e-05,2]
[352492184,1739137842589,-545.21,9.707e-05,2]
[352492187,1739137842599,-596.05,9.707e-05,2]
[352492190,1739137842608,-500.0,9.707e-05,2]
[352492193,1739137842618,-273.12,9.707e-05,2]
[352492196,1739137842628,-421.3248944,9.707e-05,2]
[352492200,1739137842640,-500.0,9.707e-05,2]
[352492203,1739137842650,-500.0,9.707e-05,2]
[352492205,1739137842659,-629.02,9.707e-05,2]
[352492207,1739137842669,-500.0,9.707e-05,2]
[352492209,1739137842679,-592.66,9.707e-05,2]
[352492211,1739137842689,-500.0,9.707e-05,2]
[352492213,1739137842701,-500.0,9.707e-05,2]
[352492215,1739137842711,-500.0,9.707e-05,2]
[352492217,1739137842720,-500.0,9.707e-05,2]
[352492219,1739137842729,-500.0,9.707e-05,2]
[352492221,1739137842739,-500.0,9.707e-05,2]
[352492223,1739137842749,-23900.0,9.708e-05,2]
[352492225,1739137842761,-280.24,9.751e-05,2]
[352492227,1739137842770,-500.0,9.792e-05,2]
[352492229,1739137842780,-178.0,9.792e-05,2]
[352492231,1739137842790,-500.0,9.792e-05,2]
[352492233,1739137842801,-331.176048,9.793e-05,2]
[352492235,1739137842810,-184.69,9.793e-05,2]
[352492237,1739137842820,-500.0,9.793e-05,2]
[352492239,1739137842830,-354.51846066,9.793e-05,2]
[352492270,1739137843048,-145.48153934,9.793e-05,2]
[352492272,1739137843058,-500.0,9.793e-05,2]
[352492274,1739137843068,-500.0,9.793e-05,2]
[352492276,1739137843078,-81.7324076,9.793e-05,2]
[352492321,1739137843258,-500.0,9.109e-05,2]
[352492324,1739137843270,-258.3341184,9.793e-05,2]
[352492327,1739137843280,-545.87,9.793e-05,2]
[352492330,1739137843290,-905.47,9.793e-05,2]
[352492333,1739137843299,-684.06798915,9.793e-05,2]
[352492337,1739137843316,-346.06150651,9.793e-05,2]
[352492361,1739137843437,-500.0,9.246e-05,2]
[352492364,1739137843447,-500.0,9.383e-05,2]
[352492367,1739137843456,-565.74,9.657e-05,2]
[352492370,1739137843466,-500.0,9.792e-05,2]
[352492373,1739137843476,-361.60050434,9.793e-05,2]
[352492376,1739137843486,-500.2,9.793e-05,2]
[352492379,1739137843495,-836.78,9.793e-05,2]
[352492381,1739137843505,-652.41,9.793e-05,2]
[352492384,1739137843517,-500.0,9.793e-05,2]
[352492387,1739137843527,-500.0,9.793e-05,2]
[352492390,1739137843536,-500.0,9.793e-05,2]
[352492393,1739137843547,-935.17,9.793e-05,2]
[352492396,1739137843556,-500.0,9.793e-05,2]
[352492398,1739137843566,-826.42,9.793e-05,2]
[352492401,1739137843576,-500.0,9.793e-05,2]
[352492404,1739137843585,-500.0,9.793e-05,2]
[352492407,1739137843595,-608.4,9.793e-05,2]
[352492410,1739137843605,-500.0,9.793e-05,2]
[352492414,1739137843617,-500.0,9.793e-05,2]
[352492417,1739137843626,-665.86,9.793e-05,2]
[352492419,1739137843637,-500.0,9.794e-05,2]
[352492423,1739137843647,-841.43,9.794e-05,2]
[352492425,1739137843657,-435.48,9.794e-05,2]
[352492429,1739137843667,-634.54,9.794e-05,2]
[352492432,1739137843677,-500.0,9.794e-05,2]
[352492435,1739137843687,-500.0,9.794e-05,2]
[352492440,1739137843697,-500.0,9.794e-05,2]
[352492444,1739137843707,-500.0,9.794e-05,2]
[352492446,1739137843717,-344.7,9.794e-05,2]
[352492451,1739137843727,-189.41,9.794e-05,2]
[352492455,1739137843737,-500.0,9.794e-05,2]
[352492460,1739137843749,-500.0,9.794e-05,2]
[352492465,1739137843760,-500.0,9.794e-05,2]
[352492469,1739137843772,-500.0,9.794e-05,2]
[352492472,1739137843782,-750.48,9.794e-05,2]
[352492475,1739137843792,-500.0,9.794e-05,2]
[352492478,1739137843802,-500.0,9.794e-05,2]
[352492481,1739137843812,-500.0,9.794e-05,2]
[352492484,1739137843822,-500.0,9.794e-05,2]
[352492486,1739137843832,-1512.13,9.794e-05,2]
[352492489,1739137843842,-500.0,9.794e-05,2]
[352492492,1739137843851,-1213.15,9.794e-05,2]
[352492495,1739137843861,-500.0,9.794e-05,2]
[352492498,1739137843871,-643.54,9.794e-05,2]
[352492501,1739137843880,-587.24,9.794e-05,2]
[352492504,1739137843890,-587.08806115,9.794e-05,2]
[352492508,1739137843899,-500.0,9.794e-05,2]
[352492510,1739137843909,-500.0,9.794e-05,2]
[352492513,1739137843919,-629.24,9.794e-05,2]
[352492516,1739137843928,-500.0,9.794e-05,2]
[352492519,1739137843937,-500.0,9.794e-05,2]
[352492521,1739137843946,-495.22,9.794e-05,2]
[352492523,1739137843956,-500.0,9.794e-05,2]
[352492526,1739137843966,-500.0,9.794e-05,2]
[352492529,1739137843976,-500.0,9.794e-05,2]
[352492532,1739137843986,-500.0,9.794e-05,2]
[352492535,1739137843995,-839.43,9.794e-05,2]
[352492538,1739137844005,-2793.48,9.794e-05,2]
[352492541,1739137844019,-504.83,9.794e-05,2]
[352492544,1739137844029,-500.0,9.794e-05,2]
[352492547,1739137844038,-161.87,9.795e-05,2]
[352492550,1739137844048,-500.0,9.844e-05,2]
[352492553,1739137844057,-500.0,9.844e-05,2]
[352492556,1739137844067,-500.0,9.844e-05,2]
[352492559,1739137844078,-500.0,9.844e-05,2]
[352492563,1739137844093,-500.0,9.844e-05,2]
[352492566,1739137844103,-500.0,9.844e-05,2]
[352492569,1739137844113,-500.0,9.844e-05,2]
[352492571,1739137844122,-500.0,9.844e-05,2]
[352492573,1739137844135,-500.0,9.844e-05,2]
[352492575,1739137844144,-500.0,9.844e-05,2]
[352492577,1739137844153,-545.21,9.844e-05,2]
[352492579,1739137844162,-500.0,9.844e-05,2]
[352492581,1739137844172,-500.0,9.844e-05,2]
[352492583,1739137844183,-151.8,9.844e-05,2]
[352492585,1739137844192,-500.0,9.844e-05,2]
[352492587,1739137844202,-426.58,9.844e-05,2]
[352492589,1739137844211,-169.17,9.844e-05,2]
[352492591,1739137844221,-623.66,9.844e-05,2]
[352492593,1739137844231,-500.0,9.929e-05,2]
[352492595,1739137844240,-288.69,9.929e-05,2]
[352492598,1739137844250,-500.0,9.93e-05,2]
[352492601,1739137844259,-500.0,9.93e-05,2]
[352492604,1739137844273,-437.52,9.93e-05,2]
[352492607,1739137844282,-500.0,9.93e-05,2]
[352492610,1739137844292,-500.0,9.93e-05,2]
[352492613,1739137844301,-500.0,9.93e-05,2]
[352492616,1739137844311,-500.0,9.93e-05,2]
[352492619,1739137844321,-500.0,9.93e-05,2]
[352492622,1739137844331,-331.176048,9.93e-05,2]
[352492625,1739137844341,-500.0,9.93e-05,2]
[352492628,1739137844350,-500.0,9.93e-05,2]
[352492631,1739137844359,-500.0,9.93e-05,2]
[352492634,1739137844369,-500.0,9.93e-05,2]
[352492637,1739137844379,-505.32473372,9.93e-05,2]
[352492640,1739137844388,-500.0,9.93e-05,2]
[352492643,1739137844398,-500.0,9.93e-05,2]
[352492646,1739137844407,-500.0,9.93e-05,2]
[352492648,1739137844417,-500.0,9.93e-05,2]
[352492650,1739137844426,-500.0,9.93e-05,2]
[352492653,1739137844435,-500.0,9.93e-05,2]
[352492656,1739137844445,-500.0,9.93e-05,2]
[352492659,1739137844455,-500.0,9.93e-05,2]
[352492662,1739137844464,-500.0,9.93e-05,2]
[352492665,1739137844473,-500.0,9.93e-05,2]
[352492668,1739137844483,-500.0,9.93e-05,2]
[352492671,1739137844492,-500.0,9.93e-05,2]
[352492674,1739137844501,-500.0,9.93e-05,2]
[352492677,1739137844514,-340.066526,9.93e-05,2]
[352492680,1739137844523,-500.0,9.93e-05,2]
[352492683,1739137844534,-500.0,9.93e-05,2]
[352492686,1739137844545,-545.87,9.93e-05,2]
[352492689,1739137844554,-500.0,9.93e-05,2]
[352492692,1739137844564,-905.47,9.93e-05,2]
[352492695,1739137844574,-500.0,9.93e-05,2]
[352492698,1739137844584,-500.0,9.93e-05,2]
[352492701,1739137844593,-500.0,9.93e-05,2]
[352492704,1739137844603,-500.0,9.93e-05,2]
[352492706,1739137844611,-500.0,9.93e-05,2]
[352492709,1739137844622,-500.0,9.93e-05,2]
[352492712,1739137844631,-500.0,9.93e-05,2]
[352492714,1739137844640,-1391.73,9.93e-05,2]
[352492718,1739137844649,-500.0,9.93e-05,2]
[352492721,1739137844658,-500.0,9.93e-05,2]
[352492724,1739137844668,-500.0,9.93e-05,2]
[352492727,1739137844677,-500.0,9.93e-05,2]
[352492730,1739137844687,-500.0,9.93e-05,2]
[352492733,1739137844696,-500.0,9.93e-05,2]
[352492736,1739137844706,-500.0,9.93e-05,2]
[352492738,1739137844715,-500.0,9.93e-05,2]
[352492741,1739137844724,-500.0,9.93e-05,2]
[352492744,1739137844733,-836.78,9.93e-05,2]
[352492747,1739137844743,-500.0,9.93e-05,2]
[352492750,1739137844752,-500.0,9.93e-05,2]
[352492753,1739137844763,-358.43461796,9.93e-05,2]
[352492756,1739137844776,-141.56538204,9.93e-05,2]
[352492759,1739137844785,-500.0,9.93e-05,2]
[352492762,1739137844795,-500.0,9.93e-05,2]
[352492765,1739137844804,-652.41,9.93e-05,2]
[352492768,1739137844813,-500.0,9.93e-05,2]
[352492771,1739137844822,-500.0,9.93e-05,2]
[352492774,1739137844831,-500.0,9.93e-05,2]
[352492777,1739137844841,-48.12460796,9.93e-05,2]
[352492780,1739137844852,-451.87539204,9.93e-05,2]
[352492782,1739137844861,-500.0,9.93e-05,2]
[352492784,1739137844870,-186.22446421,9.93e-05,2]
[352492790,1739137844894,-500.0,9.52e-05,2]
[352492793,1739137844903,-1357.63553579,9.93e-05,2]
[352492795,1739137844912,-500.0,9.93e-05,2]
[352492798,1739137844922,-500.0,9.93e-05,2]
[352492800,1739137844931,-500.0,9.93e-05,2]
[352492802,1739137844940,-500.0,9.93e-05,2]
[352492804,1739137844949,-500.0,9.93e-05,2]
[352492806,1739137844959,-500.0,9.93e-05,2]
[352492808,1739137844968,-500.0,9.93e-05,2]
[352492810,1739137844982,-500.0,9.93e-05,2]
[352492812,1739137844991,-500.0,9.93e-05,2]
[352492814,1739137845000,-500.0,9.93e-05,2]
[352492816,1739137845009,-500.0,9.93e-05,2]
[352492818,1739137845020,-215.68991301,9.93e-05,2]
[352492820,1739137845030,-500.0,9.93e-05,2]
[352492822,1739137845039,-500.0,9.93e-05,2]
[352492824,1739137845048,-500.0,9.93e-05,2]
[352492826,1739137845058,-500.0,9.93e-05,2]
[352492828,1739137845067,-500.0,9.93e-05,2]
[352492830,1739137845076,-500.0,9.93e-05,2]
[352492832,1739137845087,-500.0,9.93e-05,2]
[352492835,1739137845099,-500.0,9.93e-05,2]
[352492837,1739137845108,-500.0,9.93e-05,2]
[352492839,1739137845117,-500.0,9.93e-05,2]
[352492840,1739137845127,-558.52,9.93e-05,2]
[352492842,1739137845136,-500.0,9.93e-05,2]
[352492844,1739137845145,-500.0,9.93e-05,2]
[352492846,1739137845154,-500.0,9.93e-05,2]
[352492848,1739137845163,-500.0,9.93e-05,2]
[352492850,1739137845172,-500.0,9.93e-05,2]
[352492852,1739137845181,-500.0,9.93e-05,2]
[352492853,1739137845190,-500.0,9.93e-05,2]
[352492855,1739137845200,-498.70412017,9.93e-05,2]
[352492858,1739137845212,-500.0,9.93e-05,2]
[352492860,1739137845222,-481.18445874,9.93e-05,2]
[352492862,1739137845232,-500.0,9.93e-05,2]
[352492864,1739137845241,-494.02372937,9.93e-05,2]
[352492866,1739137845250,-500.0,9.93e-05,2]
[352492868,1739137845262,-500.0,9.93e-05,2]
[352492870,1739137845271,-500.0,9.93e-05,2]
[352492872,1739137845280,-500.0,9.93e-05,2]
[352492874,1739137845289,-935.17,9.93e-05,2]
[352492876,1739137845299,-500.0,9.93e-05,2]
[352492878,1739137845308,-500.0,9.93e-05,2]
[352492880,1739137845318,-500.0,9.93e-05,2]
[352492882,1739137845327,-500.0,9.93e-05,2]
[352492884,1739137845336,-500.0,9.93e-05,2]
[352492886,1739137845346,-320.61015835,9.93e-05,2]
[352492888,1739137845356,-500.0,9.93e-05,2]
[352492890,1739137845365,-500.0,9.93e-05,2]
[352492892,1739137845374,-500.0,9.93e-05,2]
[352492894,1739137845383,-500.0,9.93e-05,2]
[352492896,1739137845393,-500.0,9.93e-05,2]
[352492898,1739137845403,-500.0,9.93e-05,2]
[352492900,1739137845412,-500.0,9.93e-05,2]
[352492902,1739137845422,-500.0,9.93e-05,2]
[352492904,1739137845432,-500.0,9.93e-05,2]
[352492906,1739137845443,-826.42,9.93e-05,2]
[352492908,1739137845452,-500.0,9.93e-05,2]
[352492910,1739137845462,-500.0,9.93e-05,2]
[352492912,1739137845472,-500.0,9.93e-05,2]
[352492914,1739137845483,-500.0,9.93e-05,2]
[352492916,1739137845492,-500.0,9.93e-05,2]
[352492918,1739137845503,-500.0,9.93e-05,2]
[352492920,1739137845515,-500.0,9.93e-05,2]
[352492922,1739137845524,-500.0,9.93e-05,2]
[352492924,1739137845534,-500.0,9.93e-05,2]
[352492926,1739137845545,-500.0,9.93e-05,2]
[352492928,1739137845554,-500.0,9.93e-05,2]
[352492930,1739137845564,-500.0,9.93e-05,2]
[352492931,1739137845573,-500.0,9.93e-05,2]
[352492933,1739137845583,-500.0,9.93e-05,2]
[352492936,1739137845594,-500.0,9.93e-05,2]
[352492938,1739137845604,-500.0,9.93e-05,2]
[352492940,1739137845616,-254.59556122,9.93e-05,2]
[352492942,1739137845625,-500.0,9.93e-05,2]
[352492943,1739137845635,-500.45303942,9.93e-05,2]
[352492946,1739137845645,-608.4,9.93e-05,2]
[352492947,1739137845655,-500.0,9.93e-05,2]
[352492949,1739137845665,-500.0,9.93e-05,2]
[352492951,1739137845674,-532.60134948,9.93e-05,2]
[352492953,1739137845684,-503.89288859,9.93e-05,2]
[352492955,1739137845694,-500.0,9.93e-05,2]
[352492957,1739137845703,-500.0,9.93e-05,2]
[352492959,1739137845712,-500.0,9.93e-05,2]
[352492961,1739137845722,-500.0,9.93e-05,2]
[352492963,1739137845731,-500.0,9.93e-05,2]
[352492965,1739137845741,-500.0,9.93e-05,2]
[352492967,1739137845751,-443.13474416,9.93e-05,2]
[352492969,1739137845764,-181.93261139,9.93e-05,2]
[352492971,1739137845774,-500.0,9.93e-05,2]
[352492973,1739137845785,-665.86,9.93e-05,2]
[352492974,1739137845795,-500.0,9.93e-05,2]
[352492976,1739137845804,-500.0,9.93e-05,2]
[352492977,1739137845813,-500.0,9.93e-05,2]
[352492978,1739137845823,-500.0,9.93e-05,2]
[352492979,1739137845833,-169.85,9.931e-05,2]
[352492980,1739137845843,-841.43,9.931e-05,2]
[352492981,1739137845853,-634.54,9.931e-05,2]
[352492982,1739137845863,-641.19,9.931e-05,2]
[352492983,1739137845872,-500.0,9.931e-05,2]
[352492985,1739137845883,-500.0,9.931e-05,2]
[352492986,1739137845892,-500.0,9.931e-05,2]
[352492987,1739137845902,-500.0,9.931e-05,2]
[352492988,1739137845912,-500.0,9.931e-05,2]
[352492989,1739137845922,-500.0,9.931e-05,2]
[352492990,1739137845931,-163.92,9.931e-05,2]
[352492991,1739137845941,-750.48,9.931e-05,2]
[352492992,1739137845951,-500.0,9.931e-05,2]